fUSD/lending_fUSD_20240623
["ID","MTS","AMOUNT","RATE_DAILY","PERIOD"]
[330200579,1719132109027,150.0,0.00010181,2]
[330200580,1719132109048,150.0,0.00010181,2]
[330200581,1719132109071,150.0,0.00010181,2]
[330200582,1719132109092,150.0,0.00010181,2]
[330200583,1719132109115,150.0,0.00010181,2]
[330200584,1719132109137,150.0,0.00010181,2]
[330200585,1719132127362,150.0,0.00010959,2]
[330200586,1719132127384,150.0,0.00010959,2]
[330200587,1719132127741,111.27901864,0.00010959,2]
[330200588,1719132191163,38.72098136,0.00010959,2]
[330200589,1719132191186,150.0,0.00010959,2]
[330200590,1719132191208,111.27901864,0.00010959,2]
[330200591,1719132247362,38.72098136,0.00010959,2]
[330200592,1719132247387,150.0,0.00010959,2]
[330200593,1719132247408,150.0,0.00010959,2]
[330200594,1719132247429,72.55803728,0.00010959,2]
[330200595,1719132255604,77.44196272,0.00010998,2]
[330200596,1719132255625,100.48747699,0.00010998,2]
[330200597,1719132318044,58.12417429,0.00010998,2]
[330200598,1719132318066,241.87582571,0.00010998,2]
[330200599,1719132341444,411.27901864,0.00010998,2]
[330200600,1719132377767,-464.40095637,0.00011085,2]
[330200601,1719132377795,-535.59904363,0.00011095,2]
[330200602,1719132415750,10000.0,0.00014,10]
[330200603,1719132425733,150.30377574,0.00010995,2]
[330200604,1719132481510,411.27901864,0.00010995,2]
[330200605,1719132502989,817.02,9.358e-05,2]
[330200606,1719132591647,252.88,0.00011,2]
[330200607,1719132601076,252.88,0.00011,2]
[330200608,1719132628385,411.27901864,0.00011,2]
[330200618,1719132632014,-155.21039947,0.00011057,2]
[330200620,1719132632023,-156.65948624,0.00011079,2]
[330200622,1719132632033,-491.07937333,0.00011095,2]
[330200624,1719132632042,-213.15790435,0.00011095,2]
[330200625,1719132632051,-150.0,0.00011095,2]
[330200626,1719132632061,-355.65504882,0.00011096,2]
[330200627,1719132632080,-446753.7194431,0.00011096,2]
[330200628,1719132632091,-2210.50683342,0.00011096,2]
[330200629,1719132632217,-1052.60047608,0.00011096,2]
[330200630,1719132632268,-957.09084441,0.00011096,2]
[330200679,1719132640218,-259.582,0.00011096,2]
[330200680,1719132640379,-1404.8,0.00011096,2]
[330200681,1719132641621,-2398.68100547,0.00011096,2]
[330200697,1719132643479,-0.97280666,0.00011096,2]
[330200704,1719132672367,258.39,9.063e-05,2]
[330200705,1719132748880,900.0,9.063e-05,2]
[330200710,1719132819180,1254.22653528,0.00010985,2]
[330200711,1719132824505,284.07449397,0.00010985,2]
[330200712,1719132895398,730.59789517,0.00010985,2]
[330200713,1719132902397,411.27901864,0.00010985,2]
[330200714,1719133014414,411.27901864,0.00010985,2]
[330200715,1719133089407,411.27901864,0.00010985,2]
[330200716,1719133132095,150.0,0.00019969,120]
[330200717,1719133216131,833.55,9.196e-05,2]
[330200718,1719133331797,383.65473788,0.00010713,2]
[330200719,1719133333160,413.92057913,0.0001078,2]
[330200720,1719133353173,153.31,8.847e-05,2]
[330200721,1719133368319,200.0,0.00010999,2]
[330200722,1719133390984,411.27901864,0.00010999,2]
[330200723,1719133392841,158.06324404,0.00010959,2]
[330200724,1719133483932,212.34943573,0.00010959,2]
[330200725,1719133666178,1172.985941,0.00010995,2]
[330200726,1719133697329,217.2,0.00010189,2]
[330200727,1719133698208,250.0,0.00010189,2]
[330200728,1719133706911,250.0,0.00010189,2]
[330200729,1719133709474,25282.86338991,0.00011001,2]
[330200730,1719133710241,152.87,0.0001399,30]
[330200731,1719133710533,669.12870366,0.0001399,30]
[330200732,1719133710565,344.87129634,0.0001399,30]
[330200733,1719133710606,212.95,0.0001399,30]
[330200734,1719133710750,150.5,0.0001399,30]
[330200735,1719133711044,1014.0,0.0001398,30]
[330200736,1719133711150,150.5,0.0001399,30]
[330200737,1719133711353,226.1,0.0001398,30]
[330200738,1719133711388,150.5,0.0001399,30]
[330200739,1719133711612,1014.0,0.0001397,30]
[330200740,1719133711896,150.5,0.0001398,30]
[330200741,1719133711974,212.54,0.0001398,30]
[330200742,1719133712538,150.5,0.0001397,30]
[330200743,1719133744642,150.0,0.00010995,2]
[330200744,1719133760180,-1766.6182,0.0001105,2]
[330200745,1719133760202,-1088.22742364,0.00011059,2]
[330200746,1719133785215,1965.3,0.00010436,2]
[330200747,1719133806171,827.16,8.726e-05,2]
[330200748,1719133806403,827.16,0.0001099,2]
[330200749,1719133830522,398.0,0.0001399,30]
[330200750,1719133831176,150.5,0.0001399,30]
[330200751,1719133831304,150.5,0.0001398,30]
[330200752,1719133831361,398.0,0.0001398,30]
[330200753,1719133831592,228.5,0.0001397,30]
[330200754,1719133831884,710.0,0.0001399,30]
[330200755,1719133831963,398.0,0.0001397,30]
[330200765,1719133832239,-271.2999999,0.00011059,2]
[330200766,1719133832252,-898.55257646,0.00011059,2]
[330200767,1719133832261,-150.0,0.00011059,2]
[330200768,1719133832270,-492.84407554,0.0001106,2]
[330200769,1719133832305,-264.78577028,0.0001106,2]
[330200770,1719133832371,-315.04,0.0001106,2]
[330200771,1719133832383,-4255.0,0.0001106,2]
[330200772,1719133832394,-728.92117432,0.0001106,2]
[330200773,1719133832405,-772.63417301,0.0001106,2]
[330200774,1719133832438,710.0,0.0001398,30]
[330200775,1719133832459,-17070.77480685,0.0001106,2]
[330200776,1719133832468,-519.92612783,0.0001106,2]
[330200777,1719133832477,-451.13424901,0.0001106,2]
[330200778,1719133832486,-2064.26842982,0.00011061,2]
[330200779,1719133832498,-674.0,0.00011061,2]
[330200780,1719133832509,-600.0,0.00011061,2]
[330200781,1719133832521,-1311.93157018,0.00011061,2]
[330200782,1719133832531,-953.28,0.00011078,2]
[330200783,1719133832540,-634.42843007,0.0001108,2]
[330200784,1719133832552,-365.56156993,0.0001108,2]
[330200785,1719133832562,-323.03296943,0.00011086,2]
[330200786,1719133832577,-836.74867698,0.00011086,2]
[330200787,1719133832589,-435.0,0.00011086,2]
[330200788,1719133832614,-2329.11450384,0.00011086,2]
[330200789,1719133832625,-499.99,0.00011086,2]
[330200790,1719133832634,-462.51,0.00011094,2]
[330200791,1719133832643,-1000.0,0.00011095,2]
[330200792,1719133832654,-245.89,0.00011095,2]
[330200794,1719133832663,-62990.98829614,0.00011096,2]
[330200804,1719133832935,710.0,0.0001397,30]
[330200813,1719133838195,-2264.65878105,0.00011096,2]
[330200815,1719133838267,-12837.0242,0.00011096,2]
[330200816,1719133838278,-515.29338044,0.00011096,2]
[330200817,1719133838479,-4033.22356511,0.00011096,2]
[330200818,1719133838491,-10995.6244994,0.00011096,2]
[330200819,1719133838503,-15480.87706287,0.00011096,2]
[330200820,1719133838515,-417.84487201,0.00011096,2]
[330200821,1719133838527,-127617.64235865,0.00011096,2]
[330200822,1719133838536,-3101.78,0.00011096,2]
[330200823,1719133838547,-332.01291,0.00011096,2]
[330200824,1719133838556,-185.51,0.00011106,2]
[330200825,1719133838566,-1000.0,0.00011134,2]
[330200826,1719133838576,-424.51,0.00011177,2]
[330200827,1719133838585,-150.99,0.00011177,2]
[330200828,1719133838595,-28931.27,0.00011237,2]
[330200829,1719133838604,-2170.77,0.0001124,2]
[330200830,1719133838614,-155.07140903,0.00011271,2]
[330200831,1719133838623,-184.35,0.00011272,2]
[330200832,1719133838634,-150.99,0.00011298,2]
[330200834,1719133838643,-155.26515104,0.00011351,2]
[330200835,1719133838653,-169.81,0.00011352,2]
[330200836,1719133838663,-150.32777,0.00011681,2]
[330200837,1719133838672,-500.0,0.00011799,2]
[330200838,1719133838682,-500.0,0.00011799,2]
[330200839,1719133838692,-739.0,0.00011799,2]
[330200840,1719133838701,-151.0,0.00011799,2]
[330200841,1719133838711,-298.0,0.00011799,2]
[330200842,1719133838720,-691.0,0.00011799,2]
[330200843,1719133838730,-55644.07332701,0.000118,2]
[330200844,1719133838739,-151.0,0.000118,2]
[330200845,1719133838748,-151.0,0.000118,2]
[330200846,1719133838757,-151.0,0.000118,2]
[330200847,1719133838766,-151.0,0.000118,2]
[330200848,1719133838776,-151.0,0.000118,2]
[330200849,1719133838785,-8625.57603827,0.00012,2]
[330200850,1719133838794,-173.26,0.00012033,2]
[330200851,1719133838803,-363.76426011,0.00012121,2]
[330200852,1719133838813,-500.0,0.00012122,2]
[330200853,1719133838822,-600.0,0.00012122,2]
[330200854,1719133838832,-2900.0,0.00012122,2]
[330200855,1719133838842,-210.0,0.00012164,2]
[330200856,1719133838851,-175.48545791,0.00012289,2]
[330200857,1719133838861,-155.23800883,0.00012359,2]
[330200858,1719133838874,-156.21854213,0.00012361,2]
[330200859,1719133838885,-2828.06320888,0.00012361,2]
[330200860,1719133838895,-155.74265188,0.00012467,2]
[330200861,1719133838906,-1000.0,0.000125,2]
[330200862,1719133838916,-1000.0,0.00012525,2]
[330200863,1719133838925,-2003.878178,0.00012587,2]
[330200864,1719133838935,-156.85534541,0.00012587,2]
[330200865,1719133838944,-5973.0,0.00012766,2]
[330200866,1719133838953,-220.79189406,0.000129,2]
[330200867,1719133838962,-220.79189406,0.000129,2]
[330200868,1719133838971,-331.91893932,0.000129,2]
[330200869,1719133838981,-500.0,0.00012944,2]
[330200870,1719133838990,-600.0,0.00012944,2]
[330200871,1719133839000,-2900.0,0.00012944,2]
[330200872,1719133839009,-3507.39095033,0.00013,2]
[330200873,1719133839019,-209.94218778,0.0001311,2]
[330200874,1719133839028,-155.15854676,0.0001311,2]
[330200875,1719133839038,-2599.2494,0.00013227,2]
[330200876,1719133839047,-175.00315019,0.00013232,2]
[330200877,1719133839057,-171.56244531,0.00013232,2]
[330200878,1719133839067,-812.034292,0.00013251,2]
[330200879,1719133839077,-151.0,0.00013251,2]
[330200880,1719133839087,-151.0,0.00013251,2]
[330200881,1719133839097,-812.034292,0.00013251,2]
[330200882,1719133839107,-151.0,0.00013251,2]
[330200883,1719133839120,-7660.56710174,0.00013252,2]
[330200884,1719133839132,-827.16,0.00013254,2]
[330200885,1719133839143,-151.0,0.00013257,2]
[330200886,1719133839153,-151.0,0.00013257,2]
[330200887,1719133839163,-151.0,0.00013258,2]
[330200888,1719133839174,-297.163038,0.00013258,2]
[330200889,1719133839184,-151.0,0.00013258,2]
[330200890,1719133839194,-1121.31680396,0.00013275,2]
[330200891,1719133839204,-155.88395485,0.00013275,2]
[330200892,1719133839216,-196.44854027,0.00013275,2]
[330200893,1719133839226,-529.72889138,0.00013276,2]
[330200894,1719133839236,-282.78786944,0.00013276,2]
[330200895,1719133839246,-1000.83004493,0.00013283,2]
[330200896,1719133839256,-245.79740235,0.00013317,2]
[330200897,1719133839266,-151.0,0.00013326,2]
[330200898,1719133839276,-659.0,0.00013327,2]
[330200899,1719133839286,-221.740282,0.00013327,2]
[330200900,1719133839296,-151.0,0.00013327,2]
[330200901,1719133839307,-152.121593,0.00013327,2]
[330200902,1719133839317,-151.0,0.00013327,2]
[330200903,1719133839327,-151.0,0.00013327,2]
[330200904,1719133839336,-151.0,0.00013327,2]
[330200905,1719133839346,-151.0,0.00013327,2]
[330200906,1719133839356,-812.034292,0.00013327,2]
[330200907,1719133839366,-151.0,0.00013327,2]
[330200908,1719133839377,-151.0,0.00013327,2]
[330200909,1719133839386,-812.034292,0.00013327,2]
[330200910,1719133839396,-151.0,0.00013327,2]
[330200911,1719133839406,-151.0,0.00013327,2]
[330200912,1719133839416,-151.0,0.00013327,2]
[330200913,1719133839425,-232679.48963365,0.00013327,2]
[330200914,1719133839439,-344.64227953,0.00013327,2]
[330200915,1719133839451,-641.94132,0.00013327,2]
[330200920,1719133842002,-297.27502928,0.00011095,2]
[330200958,1719133843454,-421.10929091,0.00011095,2]
[330200960,1719133843464,-140.70195909,0.00013274,2]
[330200962,1719133843475,-560.79210944,0.00013274,2]
[330200964,1719133843487,-640.64,0.00013274,2]
[330200966,1719133843498,-1764.38807366,0.00013274,2]
[330200968,1719133843507,-194.89843835,0.00013275,2]
[330201036,1719133846454,-629.66684703,0.00012147,2]
[330201037,1719133846874,-2610.05204471,0.00012147,2]
[330201038,1719133846883,-59.40763743,0.00013275,2]
[330201039,1719133846892,-996.152007,0.00013327,2]
[330201040,1719133846901,-151.0,0.00013327,2]
[330201041,1719133846910,-1472.18183,0.00013327,2]
[330201042,1719133846919,-996.152007,0.00013327,2]
[330201043,1719133846929,-210.653268,0.00013327,2]
[330201044,1719133846939,-9631.00517434,0.00013327,2]
[330201045,1719133922926,164.66,0.00010093,2]
[330201046,1719133923977,165.03,0.00010093,2]
[330201047,1719133951900,497.0,0.0001399,30]
[330201048,1719133952513,497.0,0.0001398,30]
[330201049,1719133953090,497.0,0.0001397,30]
[330201050,1719134071743,279.0,0.0001399,30]
[330201051,1719134071897,279.0,0.0001398,30]
[330201052,1719134072365,279.0,0.0001397,30]
[330201053,1719134072728,348.0,0.0001399,30]
[330201054,1719134073205,348.0,0.0001398,30]
[330201055,1719134073687,348.0,0.0001397,30]
[330201056,1719134191703,243.0,0.0001399,30]
[330201057,1719134192175,243.0,0.0001398,30]
[330201058,1719134192650,243.0,0.0001397,30]
[330201059,1719134311841,195.0,0.0001399,30]
[330201060,1719134312361,195.0,0.0001398,30]
[330201061,1719134312749,170.0,0.0001399,30]
[330201062,1719134312855,195.0,0.0001397,30]
[330201063,1719134313271,170.0,0.0001398,30]
[330201064,1719134313818,170.0,0.0001397,30]
[330201065,1719134344249,198.57853662,0.0002,120]
[330201066,1719134378880,785.2,9.88e-05,2]
[330201067,1719134432232,150.5,0.0001399,30]
[330201068,1719134432964,150.5,0.0001399,30]
[330201069,1719134433003,150.5,0.0001398,30]
[330201070,1719134433610,150.5,0.0001398,30]
[330201071,1719134434135,237.66,0.0001397,30]
[330201072,1719134434839,150.5,0.0001397,30]
[330201073,1719134452468,1365.50633314,9.88e-05,2]
[330201074,1719134552189,150.5,0.0001399,30]
[330201075,1719134552828,150.5,0.0001398,30]
[330201076,1719134553140,150.5,0.0001399,30]
[330201077,1719134553279,150.5,0.0001397,30]
[330201078,1719134553804,150.5,0.0001398,30]
[330201079,1719134554336,150.5,0.0001397,30]
[330201080,1719134583928,169.68094133,0.00010979,2]
[330201081,1719134583951,135.30657715,0.00010979,2]
[330201082,1719134593716,587.71262734,0.00010995,2]
[330201084,1719134672793,294.15,0.0001399,30]
[330201086,1719134771371,2833.8154925,0.00011002,2]
[330201087,1719134792880,150.5,0.0001399,30]
[330201088,1719134793494,150.5,0.0001398,30]
[330201089,1719134794140,150.5,0.0001397,30]
[330201090,1719134861230,217.9630035,0.00010994,2]
[330201091,1719134895430,200.0,0.00016,12]
[330201092,1719134905771,200.0,0.0001592,30]
[330201093,1719134905823,329.72508553,0.0001592,30]
[330201095,1719135031383,150.5,0.0001399,30]
[330201096,1719135032105,150.5,0.0001398,30]
[330201105,1719135032403,-290.0,0.00011051,2]
[330201106,1719135032412,-300.0,0.00011094,2]
[330201107,1719135032421,-300.0,0.00011094,2]
[330201108,1719135032430,-150.0,0.00011094,2]
[330201109,1719135032439,-30832.03814433,0.00011095,2]
[330201110,1719135032451,-4443.51873846,0.00011095,2]
[330201111,1719135032516,168.0,0.0001397,30]
[330201112,1719135032594,-6325.98598982,0.00011095,2]
[330201113,1719135032607,-1440.41753482,0.00011095,2]
[330201114,1719135032619,-228925.92019971,0.00011095,2]
[330201115,1719135032649,-15649.44325883,0.00011095,2]
[330201116,1719135032835,-1217.91761329,0.00011095,2]
[330201117,1719135032847,-544.0998858,0.00011095,2]
[330201119,1719135032876,-621.48729587,0.00011095,2]
[330201146,1719135039051,-257.11553733,0.00011095,2]
[330201158,1719135040734,-22.20985864,0.00011095,2]
[330201159,1719135040788,-885.1059152,0.00011095,2]
[330201160,1719135040799,-507.89299645,0.00011095,2]
[330201176,1719135043748,-0.00518711,0.00011095,2]
[330201191,1719135048251,-259.8288647,0.00011095,2]
[330201192,1719135048262,-2343.36758848,0.00011095,2]
[330201193,1719135048290,-1481.8423587,0.00011095,2]
[330201194,1719135105715,883.57,9.563e-05,2]
[330201195,1719135247031,161.13595753,0.00010994,2]
[330201196,1719135316924,169.71,8.856e-05,2]
[330201197,1719135346463,1420.08142383,0.00010984,2]
[330201199,1719135373923,200.36077415,0.00010929,2]
[330201200,1719135389487,661.40067281,0.00010937,2]
[330201201,1719135420190,9459.03853746,0.00012,30]
[330201202,1719135429070,1000.0,0.00010875,2]
[330201204,1719135462180,217.96300349,0.00010981,2]
[330201208,1719135610853,191.76,0.00010348,2]
[330201209,1719135626558,297.91,0.00010335,2]
[330201210,1719135635033,7599.24480365,0.00010956,2]
[330201211,1719135635062,660893.42158143,0.00010956,2]
[330201212,1719135635232,-167.63655556,0.00010956,2]
[330201213,1719135635867,-167.63655556,0.00010956,2]
[330201214,1719135636336,-167.63655556,0.00010956,2]
[330201215,1719135638497,-167.63655556,0.00010956,2]
[330201216,1719135640308,-167.63655556,0.00010956,2]
[330201217,1719135640917,-167.63655556,0.00010956,2]
[330201218,1719135642427,-167.63655556,0.00010956,2]
[330201219,1719135642915,-167.63655556,0.00010956,2]
[330201220,1719135643321,-167.63655556,0.00010956,2]
[330201221,1719135643829,-155.25433982,0.00010956,2]
[330201222,1719135660952,150.0,9.159e-05,2]
[330201223,1719135660974,150.0,9.159e-05,2]
[330201224,1719135660995,150.0,9.159e-05,2]
[330201225,1719135661018,150.0,9.159e-05,2]
[330201226,1719135661040,150.0,9.159e-05,2]
[330201227,1719135661064,89.39,9.159e-05,2]
[330201228,1719135707146,150.0,9.159e-05,2]
[330201229,1719135707175,263.28070068,9.159e-05,2]
[330201230,1719135731463,150.0,9.159e-05,2]
[330201231,1719135731486,5.0,9.159e-05,2]
[330201232,1719135737114,150.0,9.159e-05,2]
[330201233,1719135737136,5.0,9.159e-05,2]
[330201234,1719135739536,150.0,9.159e-05,2]
[330201235,1719135739558,5.25433982,9.159e-05,2]
[330201236,1719135748073,150.0,9.159e-05,2]
[330201237,1719135748096,150.0,9.159e-05,2]
[330201238,1719135818066,150.0,9.159e-05,2]
[330201239,1719135818088,16.20928735,9.159e-05,2]
[330201240,1719135837910,150.0,9.159e-05,2]
[330201241,1719135837936,49.9771048,9.159e-05,2]
[330201242,1719135840235,-200.0,0.0001016,2]
[330201243,1719135840261,-685.34,0.00010178,2]
[330201244,1719135843180,474.51,0.00010178,2]
[330201245,1719135851038,150.0,9.159e-05,2]
[330201246,1719135851059,150.0,9.159e-05,2]
[330201247,1719135851081,150.0,9.159e-05,2]
[330201248,1719135851103,150.0,9.159e-05,2]
[330201249,1719135860279,170.69,0.00010177,2]
[330201250,1719135873749,4437.46,0.00010178,2]
[330201251,1719135884090,150.0,0.00010178,2]
[330201252,1719135884112,150.0,0.00010178,2]
[330201253,1719135884133,111.27901864,0.00010178,2]
[330201254,1719135893966,-250.0,0.00011037,2]
[330201255,1719135893988,-350.0,0.00011063,2]
[330201256,1719135894618,150.0,0.00010189,2]
[330201257,1719135894643,100.0,0.00010189,2]
[330201258,1719135897088,-88.28,0.00011063,2]
[330201259,1719135897114,-2057.76,0.00011078,2]
[330201260,1719135897139,-1353.96,0.00011081,2]
[330201261,1719135916834,-150.0,0.00011001,2]
[330201262,1719135917001,-150.0,0.00011001,2]
[330201263,1719135917081,-150.0,0.00011001,2]
[330201264,1719135917162,-150.0,0.00011001,2]
[330201265,1719135917242,-150.0,0.00011001,2]
[330201266,1719135917297,-150.0,0.00011001,2]
[330201267,1719135917329,600.0,0.00010178,2]
[330201268,1719135917443,-150.0,0.00011001,2]
[330201269,1719135917506,-150.0,0.00011001,2]
[330201270,1719135917544,-150.0,0.00011001,2]
[330201271,1719135917577,-262.62650516,0.00011001,2]
[330201272,1719135921422,150.0,0.00010924,2]
[330201273,1719135921445,150.0,0.00010924,2]
[330201274,1719135921468,150.0,0.00010924,2]
[330201275,1719135921492,1473.73,0.00010924,2]
[330201276,1719135921800,-37500.0,0.00011001,2]
[330201277,1719135931052,23900.0,0.00010932,2]
[330201278,1719135936370,-150.0,0.00011001,2]
[330201279,1719135936536,-150.0,0.00011001,2]
[330201280,1719135938146,250.0,0.00010956,2]
[330201281,1719135945582,-5500.0,0.00011001,2]
[330201282,1719135950535,226.94,0.00010948,2]
[330201283,1719135961978,-150.0,0.00011068,2]
[330201284,1719135962004,-200.10657976,0.00011081,2]
[330201285,1719135962043,-169.68237447,0.00011081,2]
[330201286,1719135962072,-461.54104577,0.00011086,2]
[330201287,1719135988963,-600.0,0.00010948,2]
[330201288,1719136172148,-1000.0,0.00010546,2]
[330201289,1719136172170,-161.13595752,0.00010848,2]
[330201290,1719136172192,-900.0,0.00010948,2]
[330201291,1719136172214,-331.92268897,0.00010948,2]
[330201292,1719136172234,-411.27901864,0.00010948,2]
[330201293,1719136172255,-95.24193487,0.00010948,2]
[330201306,1719136231740,-538.45,0.00010405,2]
[330201307,1719136231751,-204.75806513,0.00010948,2]
[330201308,1719136231761,-150.0,0.00011057,2]
[330201309,1719136231770,-2305.70439969,0.00011058,2]
[330201310,1719136231988,-476.96560031,0.00011058,2]
[330201311,1719136232002,-460.36032806,0.00011059,2]
[330201312,1719136232013,-178.2,0.00011081,2]
[330201313,1719136232024,-499.99,0.00011086,2]
[330201314,1719136232037,-169.01,0.00011089,2]
[330201315,1719136232047,-3040.06487102,0.00011092,2]
[330201316,1719136232061,-484.55762474,0.00011092,2]
[330201317,1719136232073,-1339.52166243,0.00011092,2]
[330201318,1719136232083,-300.0,0.00011093,2]
[330201319,1719136232092,-150.99,0.00011093,2]
[330201320,1719136232102,-919.64137807,0.00011094,2]
[330201321,1719136232112,-1154.86,0.00011105,2]
[330201322,1719136232122,-1000.0,0.00011106,2]
[330201323,1719136232132,-217.2,0.00011106,2]
[330201324,1719136232141,-492.45,0.00011126,2]
[330201325,1719136232151,-520.7723961,0.00011141,2]
[330201336,1719136243160,-4900.9576039,0.00011141,2]
[330201337,1719136243169,-535.59904363,0.00011151,2]
[330201338,1719136243178,-1815.42,0.00011152,2]
[330201339,1719136243188,-636.68818,0.0001118,2]
[330201340,1719136243197,-636.68818,0.0001119,2]
[330201341,1719136243206,-1000.0,0.00011194,2]
[330201342,1719136243215,-97104.56178001,0.00011199,2]
[330201361,1719136264004,-150.0,0.00010948,2]
[330201362,1719136264524,-150.0,0.00010948,2]
[330201363,1719136317972,-111.27901864,0.00010948,2]
[330201364,1719136317995,-26374.72098136,0.00011095,2]
[330201366,1719136321379,-20000.0,0.00011095,2]
[330201367,1719136321803,-20000.0,0.00011095,2]
[330201368,1719136322206,-20000.0,0.00011095,2]
[330201369,1719136322475,-20000.0,0.00011095,2]
[330201370,1719136322792,-20000.0,0.00011095,2]
[330201371,1719136323207,-20000.0,0.00011095,2]
[330201372,1719136325552,-20000.0,0.00011095,2]
[330201373,1719136326407,-20000.0,0.00011095,2]
[330201374,1719136327636,-20000.0,0.00011095,2]
[330201377,1719136440774,-150.0,0.00010994,2]
[330201378,1719136441252,-150.0,0.00010994,2]
[330201379,1719136442400,-150.0,0.00010994,2]
[330201380,1719136443126,-150.0,0.00010994,2]
[330201381,1719136483906,-17.3692497,0.00010994,2]
[330201382,1719136483929,-132.6307503,0.00010994,2]
[330201383,1719136484437,-150.0,0.00010994,2]
[330201384,1719136511950,150.0,9.401e-05,2]
[330201385,1719136511973,150.0,9.401e-05,2]
[330201386,1719136511994,150.0,9.401e-05,2]
[330201387,1719136512016,150.0,9.401e-05,2]
[330201388,1719136512037,150.0,9.401e-05,2]
[330201389,1719136512060,80.42,9.401e-05,2]
[330201390,1719136576448,150.0,9.401e-05,2]
[330201391,1719136576472,150.0,9.401e-05,2]
[330201392,1719136576496,150.0,9.401e-05,2]
[330201393,1719136576520,150.0,9.401e-05,2]
[330201394,1719136576541,150.0,9.401e-05,2]
[330201395,1719136576566,36.64372928,9.401e-05,2]
[330201396,1719136591236,150.0,9.401e-05,2]
[330201397,1719136591258,5.0,9.401e-05,2]
[330201398,1719136683861,150.0,9.401e-05,2]
[330201399,1719136683884,150.0,9.401e-05,2]
[330201400,1719136683905,150.0,9.401e-05,2]
[330201401,1719136683928,150.0,9.401e-05,2]
[330201402,1719136683952,150.0,9.401e-05,2]
[330201403,1719136683975,38.72098136,9.401e-05,2]
[330201404,1719136688163,150.0,9.401e-05,2]
[330201405,1719136688186,5.0,9.401e-05,2]
[330201406,1719136800408,-194.72,0.00010461,2]
[330201407,1719136800431,-200.0,0.0001048,2]
[330201408,1719136800454,-291.1,0.00010959,2]
[330201409,1719136800477,-250.0,0.00010991,2]
[330201410,1719136800500,-128.64826834,0.00010994,2]
[330201411,1719136800522,-150.0,0.00010994,2]
[330201412,1719136800543,-22431.7917,0.00010995,2]
[330201413,1719136800566,-250.94038322,0.0001104,2]
[330201414,1719136800587,-242.12431802,0.00011059,2]
[330201415,1719136800612,-3022.81708204,0.0001108,2]
[330201416,1719136800633,-1439.04758,0.0001109,2]
[330201417,1719136800653,-535.59904363,0.00011094,2]
[330201418,1719136800674,-483275.68977367,0.00011097,2]
[330201419,1719136800695,-500.2844,0.00011099,2]
[330201420,1719136800717,-4742.921,0.00011191,2]
[330201421,1719136800739,-8689.1143792,0.00011191,2]
[330201422,1719136800760,-2755.722758,0.00011191,2]
[330201423,1719136800780,-499.99,0.00011191,2]
[330201424,1719136800804,-2000.0,0.00011199,2]
[330201425,1719136800825,-200.0,0.00011199,2]
[330201426,1719136800847,-661.84131619,0.00011199,2]
[330201427,1719136800869,-2003.878178,0.00011199,2]
[330201428,1719136800891,-24256.33911923,0.000112,2]
[330201429,1719136800912,-200.0,0.00011311,2]
[330201430,1719136800934,-4578.5,0.00011317,2]
[330201431,1719136800959,-350.0,0.00011319,2]